[Event "Titled Tuesday Blitz April 19 Late 2022"]
[White "Prohorov, Olexandr"]
[Black "Lin, Dachey"]
[WhiteFideId "14105578"]
[BlackFideId "2029650"]
[WhiteElo "1993"]
[BlackElo "2313"]
[Result "0-1"]
[Round "01"]
[TimeControl "180+1"]
[Date "2022.04.19"]
[WhiteClock "0:00:03"]
[BlackClock "0:00:12"]

1. e4 {[%clk 0:02:57]}  g6 {[%clk 0:02:56]} 2. d4 {[%clk 0:02:54]}  Bg7 {[%clk 0:02:57]} 3. Nc3 {[%clk 0:02:54]}  d5 {[%clk 0:02:56]} 4. Nf3 {[%clk 0:02:44]}  c6 {[%clk 0:02:52]} 5. h3 {[%clk 0:02:43]}  dxe4 {[%clk 0:02:48]} 6. Nxe4 {[%clk 0:02:43]}  Nd7 {[%clk 0:02:49]} 7. Bc4 {[%clk 0:02:42]}  Ngf6 {[%clk 0:02:43]} 8. Nxf6+ {[%clk 0:02:42]}  Nxf6 {[%clk 0:02:44]} 9. O-O {[%clk 0:02:43]}  O-O {[%clk 0:02:44]} 10. Re1 {[%clk 0:02:42]}  Nd5 {[%clk 0:02:43]} 11. Bg5 {[%clk 0:02:40]}  Re8 {[%clk 0:02:41]} 12. Qd2 {[%clk 0:02:36]}  a5 {[%clk 0:02:39]} 13. a4 {[%clk 0:02:36]}  Qb6 {[%clk 0:02:37]} 14. c3 {[%clk 0:02:33]}  Be6 {[%clk 0:02:34]} 15. Rxe6 {[%clk 0:02:30]}  fxe6 {[%clk 0:02:34]} 16. Re1 {[%clk 0:02:31]}  c5 {[%clk 0:02:26]} 17. Bh4 {[%clk 0:02:23]}  Rad8 {[%clk 0:02:24]} 18. Bb5 {[%clk 0:02:10]}  Rf8 {[%clk 0:02:19]} 19. dxc5 {[%clk 0:02:10]}  Qxc5 {[%clk 0:02:17]} 20. Qc2 {[%clk 0:02:04]}  Nf4 {[%clk 0:02:12]} 21. Qe4 {[%clk 0:01:50]}  Qf5 {[%clk 0:02:05]} 22. Qxb7 {[%clk 0:01:42]}  Nxh3+ {[%clk 0:01:51]} 23. gxh3 {[%clk 0:01:24]}  Qxf3 {[%clk 0:01:51]} 24. Qxf3 {[%clk 0:01:23]}  Rxf3 {[%clk 0:01:52]} 25. Kg2 {[%clk 0:01:18]}  Rf4 {[%clk 0:01:42]} 26. Bg3 {[%clk 0:01:14]}  Rf6 {[%clk 0:01:34]} 27. Bc4 {[%clk 0:01:10]}  Kf7 {[%clk 0:01:30]} 28. Be5 {[%clk 0:01:06]}  Rf5 {[%clk 0:01:25]} 29. Bc7 {[%clk 0:00:56]}  Rg5+ {[%clk 0:01:17]} 30. Kf1 {[%clk 0:00:56]}  Ra8 {[%clk 0:00:58]} 31. Bxe6+ {[%clk 0:00:54]}  Kf8 {[%clk 0:00:58]} 32. Bg3 {[%clk 0:00:43]}  Rc5 {[%clk 0:00:43]} 33. Kg2 {[%clk 0:00:38]}  Bf6 {[%clk 0:00:41]} 34. Re2 {[%clk 0:00:33]}  Ra7 {[%clk 0:00:40]} 35. Re1 {[%clk 0:00:28]}  Rb7 {[%clk 0:00:39]} 36. Re2 {[%clk 0:00:25]}  Rb6 {[%clk 0:00:34]} 37. Ba2 {[%clk 0:00:14]}  Rc8 {[%clk 0:00:29]} 38. Be6 {[%clk 0:00:12]}  Rd8 {[%clk 0:00:29]} 39. Bg4 {[%clk 0:00:10]}  Rd3 {[%clk 0:00:27]} 40. Be6 {[%clk 0:00:06]}  Rd1 {[%clk 0:00:27]} 41. Bc4 {[%clk 0:00:06]}  Bg5 {[%clk 0:00:21]} 42. h4 {[%clk 0:00:06]}  Bc1 {[%clk 0:00:20]} 43. b3 {[%clk 0:00:06]}  Rd2 {[%clk 0:00:19]} 44. Re3 {[%clk 0:00:05]}  Bb2 {[%clk 0:00:19]} 45. Rf3+ {[%clk 0:00:06]}  Rf6 {[%clk 0:00:19]} 46. Be5 {[%clk 0:00:06]}  Rxf3 {[%clk 0:00:19]} 47. Kxf3 {[%clk 0:00:07]}  Rc2 {[%clk 0:00:19]} 48. Bc7 {[%clk 0:00:05]}  Bxc3 {[%clk 0:00:19]} 49. Ke3 {[%clk 0:00:03]}  Bb4 {[%clk 0:00:19]} 50. f4 {[%clk 0:00:03]}  Rc3+ {[%clk 0:00:19]} 51. Ke4 {[%clk 0:00:03]}  h5 {[%clk 0:00:19]} 52. f5 {[%clk 0:00:03]}  Rh3 {[%clk 0:00:19]} 53. fxg6 {[%clk 0:00:02]}  Rxh4+ {[%clk 0:00:19]} 54. Ke5 {[%clk 0:00:01]}  Rg4 {[%clk 0:00:19]} 55. Bf7 {[%clk 0:00:01]}  h4 {[%clk 0:00:19]} 56. Bb6 {[%clk 0:00:01]}  Bc3+ {[%clk 0:00:18]} 57. Kf5 {[%clk 0:00:02]}  Rg3 {[%clk 0:00:17]} 58. b4 {[%clk 0:00:02]}  Bxb4 {[%clk 0:00:12]} 59. Bf2 {[%clk 0:00:02]}  Rf3+ {[%clk 0:00:11]} 60. Kg4 {[%clk 0:00:03]}  Rxf2 {[%clk 0:00:11]} 61. Kxh4 {[%clk 0:00:03]}  Rxf7 {[%clk 0:00:12]} 0-1


[Site "https://www.chess.com"]

[Event "Titled Tuesday Blitz April 19 Late 2022"]
[White "Przybylski, Wojciech"]
[Black "Holt, Conrad"]
[WhiteFideId "1117599"]
[BlackFideId "2034387"]
[WhiteElo "2133"]
[BlackElo "2586"]
[Result "0-1"]
[Round "01"]
[TimeControl "180+1"]
[Date "2022.04.19"]
[WhiteClock "0:00:12"]
[BlackClock "0:00:14"]

1. e4 {[%clk 0:02:54]}  e6 {[%clk 0:02:59]} 2. d4 {[%clk 0:02:54]}  d5 {[%clk 0:03:00]} 3. Nc3 {[%clk 0:02:55]}  Nf6 {[%clk 0:02:59]} 4. Bg5 {[%clk 0:02:54]}  dxe4 {[%clk 0:02:59]} 5. Nxe4 {[%clk 0:02:55]}  Be7 {[%clk 0:02:59]} 6. Bxf6 {[%clk 0:02:54]}  Bxf6 {[%clk 0:03:00]} 7. Nf3 {[%clk 0:02:53]}  Nd7 {[%clk 0:03:00]} 8. Bd3 {[%clk 0:02:51]}  c5 {[%clk 0:03:00]} 9. Nxf6+ {[%clk 0:02:44]}  Qxf6 {[%clk 0:02:57]} 10. c3 {[%clk 0:02:43]}  O-O {[%clk 0:02:53]} 11. O-O {[%clk 0:02:41]}  b6 {[%clk 0:02:47]} 12. Be4 {[%clk 0:02:38]}  Rb8 {[%clk 0:02:45]} 13. Qa4 {[%clk 0:02:30]}  a5 {[%clk 0:02:40]} 14. Bc6 {[%clk 0:02:20]}  Rd8 {[%clk 0:02:35]} 15. Rad1 {[%clk 0:02:17]}  cxd4 {[%clk 0:02:29]} 16. Qxd4 {[%clk 0:02:11]}  Ba6 {[%clk 0:02:19]} 17. Rfe1 {[%clk 0:02:07]}  Nc5 {[%clk 0:02:11]} 18. Qxf6 {[%clk 0:02:03]}  gxf6 {[%clk 0:02:10]} 19. Rd4 {[%clk 0:01:02]}  Nd3 {[%clk 0:01:49]} 20. Rb1 {[%clk 0:00:58]}  f5 {[%clk 0:01:28]} 21. g3 {[%clk 0:00:53]}  e5 {[%clk 0:01:24]} 22. Rd7 {[%clk 0:00:46]}  Rdc8 {[%clk 0:01:10]} 23. Bd5 {[%clk 0:00:38]}  Rd8 {[%clk 0:00:51]} 24. Bxf7+ {[%clk 0:00:36]}  Kg7 {[%clk 0:00:41]} 25. Be6+ {[%clk 0:00:30]}  Kf6 {[%clk 0:00:36]} 26. Rxd8 {[%clk 0:00:23]}  Rxd8 {[%clk 0:00:36]} 27. Bb3 {[%clk 0:00:23]}  Bb7 {[%clk 0:00:18]} 28. Ne1 {[%clk 0:00:11]}  Nc5 {[%clk 0:00:16]} 29. Rd1 {[%clk 0:00:09]}  Rxd1 {[%clk 0:00:11]} 30. Bxd1 {[%clk 0:00:09]}  Bd5 {[%clk 0:00:11]} 31. b3 {[%clk 0:00:09]}  Ne4 {[%clk 0:00:08]} 32. c4 {[%clk 0:00:09]}  Nc3 {[%clk 0:00:07]} 33. cxd5 {[%clk 0:00:08]}  Nxd1 {[%clk 0:00:07]} 34. a3 {[%clk 0:00:04]}  Nc3 {[%clk 0:00:08]} 35. b4 {[%clk 0:00:03]}  axb4 {[%clk 0:00:07]} 36. axb4 {[%clk 0:00:04]}  Nxd5 {[%clk 0:00:08]} 37. Nc2 {[%clk 0:00:04]}  Ke6 {[%clk 0:00:07]} 38. Kf1 {[%clk 0:00:05]}  Kd6 {[%clk 0:00:08]} 39. Ke2 {[%clk 0:00:05]}  Kc6 {[%clk 0:00:08]} 40. Kd3 {[%clk 0:00:05]}  Kb5 {[%clk 0:00:08]} 41. f3 {[%clk 0:00:05]}  Nxb4+ {[%clk 0:00:09]} 42. Nxb4 {[%clk 0:00:04]}  Kxb4 {[%clk 0:00:09]} 43. g4 {[%clk 0:00:04]}  fxg4 {[%clk 0:00:09]} 44. fxg4 {[%clk 0:00:04]}  Kc5 {[%clk 0:00:10]} 45. Ke4 {[%clk 0:00:05]}  Kd6 {[%clk 0:00:11]} 46. h4 {[%clk 0:00:05]}  b5 {[%clk 0:00:11]} 47. g5 {[%clk 0:00:05]}  Ke6 {[%clk 0:00:11]} 48. h5 {[%clk 0:00:06]}  b4 {[%clk 0:00:11]} 49. Kd3 {[%clk 0:00:06]}  Kf5 {[%clk 0:00:10]} 50. g6 {[%clk 0:00:06]}  hxg6 {[%clk 0:00:10]} 51. h6 {[%clk 0:00:07]}  Kf6 {[%clk 0:00:11]} 52. h7 {[%clk 0:00:07]}  Kg7 {[%clk 0:00:11]} 53. Kc4 {[%clk 0:00:08]}  Kxh7 {[%clk 0:00:11]} 54. Kxb4 {[%clk 0:00:08]}  g5 {[%clk 0:00:11]} 55. Kc4 {[%clk 0:00:09]}  g4 {[%clk 0:00:12]} 56. Kd3 {[%clk 0:00:10]}  Kg6 {[%clk 0:00:12]} 57. Ke4 {[%clk 0:00:10]}  Kf6 {[%clk 0:00:13]} 58. Ke3 {[%clk 0:00:11]}  Kf5 {[%clk 0:00:13]} 59. Kf2 {[%clk 0:00:12]}  Kf4 {[%clk 0:00:14]} 60. Kg2 {[%clk 0:00:12]}  e4 {[%clk 0:00:14]} 0-1


[Site "https://www.chess.com"]

[Event "Titled Tuesday Blitz April 19 Late 2022"]
[White "Reprintsev, Alexander"]
[Black "Kazakouski, Valery"]
[WhiteFideId "14100541"]
[BlackFideId "13507443"]
[WhiteElo "2108"]
[BlackElo "2524"]
[Result "1-0"]
[Round "01"]
[TimeControl "180+1"]
[Date "2022.04.19"]
[WhiteClock "0:00:36"]
[BlackClock "0:00:04"]

1. e4 {[%clk 0:03:00]}  c5 {[%clk 0:02:58]} 2. b3 {[%clk 0:02:58]}  Nc6 {[%clk 0:02:58]} 3. Bb2 {[%clk 0:02:58]}  Nf6 {[%clk 0:02:57]} 4. e5 {[%clk 0:02:57]}  Nd5 {[%clk 0:02:57]} 5. Nf3 {[%clk 0:02:57]}  e6 {[%clk 0:02:55]} 6. c4 {[%clk 0:02:53]}  Nde7 {[%clk 0:02:51]} 7. d4 {[%clk 0:02:51]}  cxd4 {[%clk 0:02:47]} 8. Nxd4 {[%clk 0:02:51]}  Qa5+ {[%clk 0:02:45]} 9. Bc3 {[%clk 0:02:40]}  Qxe5+ {[%clk 0:02:44]} 10. Be2 {[%clk 0:02:40]}  Nxd4 {[%clk 0:02:25]} 11. Bxd4 {[%clk 0:02:39]}  Qc7 {[%clk 0:02:11]} 12. O-O {[%clk 0:02:34]}  Nf5 {[%clk 0:01:45]} 13. Bb2 {[%clk 0:02:30]}  Bd6 {[%clk 0:01:40]} 14. h3 {[%clk 0:02:24]}  O-O {[%clk 0:01:24]} 15. Nc3 {[%clk 0:02:24]}  a6 {[%clk 0:01:18]} 16. Bd3 {[%clk 0:02:24]}  Ne7 {[%clk 0:00:59]} 17. Ne4 {[%clk 0:02:06]}  Be5 {[%clk 0:00:56]} 18. Qh5 {[%clk 0:02:04]}  Ng6 {[%clk 0:00:29]} 19. Ng5 {[%clk 0:01:55]}  h6 {[%clk 0:00:17]} 20. Nxf7 {[%clk 0:01:55]}  Bh2+ {[%clk 0:00:07]} 21. Kh1 {[%clk 0:01:55]}  Nf4 {[%clk 0:00:05]} 22. Nxh6+ {[%clk 0:01:47]}  gxh6 {[%clk 0:00:05]} 23. Qxh6 {[%clk 0:00:58]}  Kf7 {[%clk 0:00:05]} 24. Qg7+ {[%clk 0:00:47]}  Ke8 {[%clk 0:00:05]} 25. Be5 {[%clk 0:00:47]}  Nxd3 {[%clk 0:00:04]} 26. Bxc7 {[%clk 0:00:44]}  Bxc7 {[%clk 0:00:04]} 27. Qg6+ {[%clk 0:00:36]} 1-0


[Site "https://www.chess.com"]

[Event "Titled Tuesday Blitz April 19 Late 2022"]
[White "Ricaurte Lopez, Juan Carlos"]
[Black "Bodi, Tibor"]
[WhiteFideId "3600327"]
[BlackFideId "701084"]
[WhiteElo "2209"]
[BlackElo "2243"]
[Result "0-1"]
[Round "01"]
[TimeControl "180+1"]
[Date "2022.04.19"]
[WhiteClock "0:00:01"]
[BlackClock "0:00:23"]

1. e4 {[%clk 0:02:56]}  Nf6 {[%clk 0:02:57]} 2. e5 {[%clk 0:02:55]}  Nd5 {[%clk 0:02:58]} 3. d4 {[%clk 0:02:52]}  d6 {[%clk 0:02:58]} 4. Nf3 {[%clk 0:02:52]}  Nb6 {[%clk 0:02:58]} 5. h3 {[%clk 0:02:45]}  g6 {[%clk 0:02:57]} 6. Nc3 {[%clk 0:02:40]}  Bg7 {[%clk 0:02:58]} 7. Bf4 {[%clk 0:02:40]}  O-O {[%clk 0:02:58]} 8. Qd2 {[%clk 0:02:38]}  dxe5 {[%clk 0:02:56]} 9. Nxe5 {[%clk 0:02:36]}  Nc6 {[%clk 0:02:52]} 10. O-O-O {[%clk 0:02:27]}  Nd5 {[%clk 0:02:49]} 11. Bg3 {[%clk 0:02:19]}  Ncb4 {[%clk 0:02:37]} 12. Bc4 {[%clk 0:02:14]}  Be6 {[%clk 0:02:27]} 13. Bb3 {[%clk 0:02:12]}  a5 {[%clk 0:02:22]} 14. Kb1 {[%clk 0:02:09]}  a4 {[%clk 0:02:21]} 15. Bxd5 {[%clk 0:02:06]}  Nxd5 {[%clk 0:02:19]} 16. Nxd5 {[%clk 0:02:05]}  Qxd5 {[%clk 0:02:20]} 17. c4 {[%clk 0:02:02]}  Qe4+ {[%clk 0:02:19]} 18. Ka1 {[%clk 0:01:59]}  c5 {[%clk 0:02:13]} 19. f3 {[%clk 0:01:56]}  Qxd4 {[%clk 0:02:12]} 20. Qxd4 {[%clk 0:01:52]}  cxd4 {[%clk 0:02:13]} 21. Rxd4 {[%clk 0:01:52]}  a3 {[%clk 0:02:14]} 22. b3 {[%clk 0:01:46]}  f6 {[%clk 0:02:02]} 23. Nd7 {[%clk 0:01:12]}  Rfd8 {[%clk 0:01:58]} 24. Rhd1 {[%clk 0:01:09]}  Bf7 {[%clk 0:01:20]} 25. Kb1 {[%clk 0:01:04]}  e5 {[%clk 0:01:16]} 26. Rd6 {[%clk 0:00:59]}  Be8 {[%clk 0:01:10]} 27. Nc5 {[%clk 0:00:51]}  Rxd6 {[%clk 0:01:09]} 28. Rxd6 {[%clk 0:00:50]}  Bf8 {[%clk 0:01:09]} 29. Rd5 {[%clk 0:00:21]}  Bc6 {[%clk 0:01:09]} 30. Nd7 {[%clk 0:00:21]}  Kf7 {[%clk 0:00:47]} 31. Rd2 {[%clk 0:00:11]}  Bb4 {[%clk 0:00:45]} 32. Rd1 {[%clk 0:00:09]}  e4 {[%clk 0:00:35]} 33. Nb6 {[%clk 0:00:07]}  Ra6 {[%clk 0:00:34]} 34. Nd5 {[%clk 0:00:06]}  Bxd5 {[%clk 0:00:31]} 35. cxd5 {[%clk 0:00:07]}  e3 {[%clk 0:00:24]} 36. Kc2 {[%clk 0:00:03]}  e2 {[%clk 0:00:23]} 37. Rc1 {[%clk 0:00:02]}  Ra5 {[%clk 0:00:22]} 38. Kd3 {[%clk 0:00:01]}  Rxd5+ {[%clk 0:00:22]} 39. Kxe2 {[%clk 0:00:01]}  Rd2+ {[%clk 0:00:23]} 0-1


[Site "https://www.chess.com"]

[Event "Titled Tuesday Blitz April 19 Late 2022"]
[White "Riehle, Marco"]
[Black "Caruana, Fabiano"]
[WhiteFideId "12904392"]
[BlackFideId "2020009"]
[WhiteElo "2462"]
[BlackElo "2744"]
[Result "1-0"]
[Round "01"]
[TimeControl "180+1"]
[Date "2022.04.19"]
[WhiteClock "0:01:00"]
[BlackClock "0:00:41"]

1. e4 {[%clk 0:03:00]}  e6 {[%clk 0:02:58]} 2. c4 {[%clk 0:03:00]}  d5 {[%clk 0:02:57]} 3. cxd5 {[%clk 0:03:00]}  exd5 {[%clk 0:02:57]} 4. Qb3 {[%clk 0:03:01]}  Nf6 {[%clk 0:02:56]} 5. e5 {[%clk 0:03:01]}  Ne4 {[%clk 0:02:55]} 6. Nc3 {[%clk 0:03:01]}  Nxc3 {[%clk 0:02:51]} 7. bxc3 {[%clk 0:03:02]}  Nc6 {[%clk 0:02:51]} 8. d4 {[%clk 0:03:02]}  Be7 {[%clk 0:02:52]} 9. Bd3 {[%clk 0:03:00]}  O-O {[%clk 0:02:52]} 10. Nf3 {[%clk 0:02:56]}  Bg4 {[%clk 0:02:49]} 11. Qxb7 {[%clk 0:02:48]}  Na5 {[%clk 0:02:48]} 12. Qb1 {[%clk 0:02:46]}  Rb8 {[%clk 0:02:44]} 13. Qc2 {[%clk 0:02:45]}  h6 {[%clk 0:02:43]} 14. Nd2 {[%clk 0:02:43]}  c5 {[%clk 0:02:42]} 15. O-O {[%clk 0:02:41]}  Qd7 {[%clk 0:02:34]} 16. f3 {[%clk 0:02:33]}  Be6 {[%clk 0:02:33]} 17. f4 {[%clk 0:02:25]}  c4 {[%clk 0:02:31]} 18. Bh7+ {[%clk 0:02:25]}  Kh8 {[%clk 0:02:29]} 19. f5 {[%clk 0:02:26]}  g6 {[%clk 0:02:11]} 20. fxg6 {[%clk 0:02:16]}  fxg6 {[%clk 0:02:08]} 21. Bxg6 {[%clk 0:02:15]}  Rxf1+ {[%clk 0:02:06]} 22. Nxf1 {[%clk 0:02:16]}  Rg8 {[%clk 0:01:56]} 23. Ng3 {[%clk 0:02:11]}  Bf8 {[%clk 0:01:45]} 24. Bf5 {[%clk 0:02:00]}  Nc6 {[%clk 0:01:43]} 25. Bxe6 {[%clk 0:01:57]}  Qxe6 {[%clk 0:01:44]} 26. Be3 {[%clk 0:01:56]}  Bg7 {[%clk 0:01:42]} 27. Rf1 {[%clk 0:01:51]}  Rf8 {[%clk 0:01:39]} 28. Rxf8+ {[%clk 0:01:51]}  Bxf8 {[%clk 0:01:40]} 29. Qf5 {[%clk 0:01:49]}  Qxf5 {[%clk 0:01:37]} 30. Nxf5 {[%clk 0:01:50]}  Kh7 {[%clk 0:01:38]} 31. g4 {[%clk 0:01:45]}  Kg6 {[%clk 0:01:37]} 32. Kg2 {[%clk 0:01:40]}  Nd8 {[%clk 0:01:23]} 33. Kg3 {[%clk 0:01:29]}  Ne6 {[%clk 0:01:22]} 34. Bd2 {[%clk 0:01:26]}  a5 {[%clk 0:01:16]} 35. Ne3 {[%clk 0:01:26]}  Nc7 {[%clk 0:01:15]} 36. h4 {[%clk 0:01:25]}  h5 {[%clk 0:01:15]} 37. gxh5+ {[%clk 0:01:25]}  Kxh5 {[%clk 0:01:14]} 38. Ng4 {[%clk 0:01:24]}  Kg6 {[%clk 0:01:13]} 39. Ne3 {[%clk 0:01:19]}  Kh5 {[%clk 0:01:06]} 40. Nf5 {[%clk 0:01:11]}  a4 {[%clk 0:00:59]} 41. Kh3 {[%clk 0:01:10]}  Ba3 {[%clk 0:00:53]} 42. Ng3+ {[%clk 0:01:09]}  Kg6 {[%clk 0:00:54]} 43. Kg4 {[%clk 0:01:09]}  Bb2 {[%clk 0:00:50]} 44. h5+ {[%clk 0:01:10]}  Kf7 {[%clk 0:00:49]} 45. Kf5 {[%clk 0:01:07]}  Nb5 {[%clk 0:00:47]} 46. e6+ {[%clk 0:01:05]}  Ke7 {[%clk 0:00:43]} 47. Ne2 {[%clk 0:01:00]}  Nd6+ {[%clk 0:00:41]} 48. Ke5 {[%clk 0:01:00]}  Ne4 {[%clk 0:00:41]} 49. Be1 {[%clk 0:01:00]} 1-0


[Site "https://www.chess.com"]

[Event "Titled Tuesday Blitz April 19 Late 2022"]
[White "Rosen, Eric"]
[Black "Gu, Xiaobing"]
[WhiteFideId "2032562"]
[BlackFideId "8602611"]
[WhiteElo "2362"]
[BlackElo "2174"]
[Result "1-0"]
[Round "01"]
[TimeControl "180+1"]
[Date "2022.04.19"]
[WhiteClock "0:00:14"]
[BlackClock "0:00:06"]

1. d4 {[%clk 0:02:56]}  Nf6 {[%clk 0:02:59]} 2. Bf4 {[%clk 0:02:56]}  g6 {[%clk 0:02:57]} 3. Nc3 {[%clk 0:02:56]}  d5 {[%clk 0:02:48]} 4. e3 {[%clk 0:02:55]}  Bg7 {[%clk 0:02:48]} 5. h4 {[%clk 0:02:54]}  h5 {[%clk 0:02:45]} 6. Nf3 {[%clk 0:02:54]}  c5 {[%clk 0:02:39]} 7. Nb5 {[%clk 0:02:53]}  Na6 {[%clk 0:02:38]} 8. c3 {[%clk 0:02:53]}  Bg4 {[%clk 0:02:30]} 9. Be2 {[%clk 0:02:42]}  O-O {[%clk 0:02:23]} 10. Ne5 {[%clk 0:02:42]}  Bxe2 {[%clk 0:02:10]} 11. Qxe2 {[%clk 0:02:42]}  Nd7 {[%clk 0:02:11]} 12. a4 {[%clk 0:02:35]}  Nxe5 {[%clk 0:02:02]} 13. Bxe5 {[%clk 0:02:34]}  f6 {[%clk 0:01:57]} 14. Bg3 {[%clk 0:02:32]}  e5 {[%clk 0:01:51]} 15. dxe5 {[%clk 0:02:03]}  fxe5 {[%clk 0:01:49]} 16. Rd1 {[%clk 0:02:03]}  d4 {[%clk 0:01:27]} 17. cxd4 {[%clk 0:01:46]}  cxd4 {[%clk 0:01:24]} 18. exd4 {[%clk 0:01:37]}  exd4 {[%clk 0:01:24]} 19. O-O {[%clk 0:01:37]}  Kh7 {[%clk 0:01:21]} 20. Rd2 {[%clk 0:01:14]}  Nc5 {[%clk 0:01:08]} 21. Bd6 {[%clk 0:01:06]}  Rf5 {[%clk 0:00:58]} 22. Nxd4 {[%clk 0:01:00]}  Rd5 {[%clk 0:00:36]} 23. Bxc5 {[%clk 0:01:00]}  Bxd4 {[%clk 0:00:25]} 24. Rfd1 {[%clk 0:00:47]}  Rxc5 {[%clk 0:00:23]} 25. Rxd4 {[%clk 0:00:47]}  Qxh4 {[%clk 0:00:22]} 26. Rd7+ {[%clk 0:00:47]}  Kh6 {[%clk 0:00:20]} 27. Rxb7 {[%clk 0:00:21]}  Rf8 {[%clk 0:00:20]} 28. g3 {[%clk 0:00:20]}  Qg5 {[%clk 0:00:15]} 29. Rdd7 {[%clk 0:00:18]}  Qc1+ {[%clk 0:00:09]} 30. Kg2 {[%clk 0:00:16]}  Rcf5 {[%clk 0:00:06]} 31. Rh7+ {[%clk 0:00:14]}  Kg5 {[%clk 0:00:06]} 32. f4+ {[%clk 0:00:14]} 1-0


[Site "https://www.chess.com"]

[Event "Titled Tuesday Blitz April 19 Late 2022"]
[White "Sanchez Alvares, Kelvin Antonio"]
[Black "Moskalenko, Alexander"]
[WhiteFideId "3906680"]
[BlackFideId "4155351"]
[WhiteElo "2193"]
[BlackElo "2434"]
[Result "0-1"]
[Round "01"]
[TimeControl "180+1"]
[Date "2022.04.19"]
[WhiteClock "0:00:10"]
[BlackClock "0:00:04"]

1. e4 {[%clk 0:02:59]}  c5 {[%clk 0:01:59]} 2. Nf3 {[%clk 0:02:45]}  e6 {[%clk 0:02:00]} 3. d4 {[%clk 0:02:35]}  cxd4 {[%clk 0:02:01]} 4. Nxd4 {[%clk 0:02:35]}  a6 {[%clk 0:02:02]} 5. c4 {[%clk 0:02:29]}  Nf6 {[%clk 0:02:01]} 6. Nc3 {[%clk 0:02:28]}  Bb4 {[%clk 0:02:00]} 7. f3 {[%clk 0:02:28]}  d5 {[%clk 0:02:00]} 8. Qa4+ {[%clk 0:02:26]}  Nc6 {[%clk 0:02:00]} 9. cxd5 {[%clk 0:02:24]}  exd5 {[%clk 0:01:54]} 10. Nxc6 {[%clk 0:02:23]}  Bxc3+ {[%clk 0:01:52]} 11. bxc3 {[%clk 0:02:24]}  bxc6 {[%clk 0:01:53]} 12. Qxc6+ {[%clk 0:02:22]}  Bd7 {[%clk 0:01:52]} 13. Qd6 {[%clk 0:02:22]}  dxe4 {[%clk 0:01:50]} 14. Ba3 {[%clk 0:02:20]}  exf3 {[%clk 0:00:47]} 15. O-O-O {[%clk 0:02:16]}  Be6 {[%clk 0:00:45]} 16. Qc6+ {[%clk 0:02:13]}  Nd7 {[%clk 0:00:44]} 17. Qxf3 {[%clk 0:02:02]}  Rc8 {[%clk 0:00:40]} 18. Bxa6 {[%clk 0:01:54]}  Qa5 {[%clk 0:00:39]} 19. Bxc8 {[%clk 0:01:23]}  Qxa3+ {[%clk 0:00:39]} 20. Kd2 {[%clk 0:01:23]}  O-O {[%clk 0:00:39]} 21. Bxd7 {[%clk 0:01:22]}  Bxd7 {[%clk 0:00:39]} 22. Ke2 {[%clk 0:01:15]}  Qxa2+ {[%clk 0:00:36]} 23. Kf1 {[%clk 0:01:05]}  Bb5+ {[%clk 0:00:34]} 24. Kg1 {[%clk 0:01:05]}  Be2 {[%clk 0:00:34]} 25. Qf2 {[%clk 0:01:03]}  Qc4 {[%clk 0:00:30]} 26. Re1 {[%clk 0:01:01]}  Bh5 {[%clk 0:00:29]} 27. Qd4 {[%clk 0:00:59]}  Qc7 {[%clk 0:00:27]} 28. Qe5 {[%clk 0:00:52]}  Qa7+ {[%clk 0:00:22]} 29. Qe3 {[%clk 0:00:52]}  Qc7 {[%clk 0:00:22]} 30. Kf2 {[%clk 0:00:50]}  Bg6 {[%clk 0:00:22]} 31. Qe5 {[%clk 0:00:45]}  Qb6+ {[%clk 0:00:21]} 32. Qd4 {[%clk 0:00:44]}  Qc7 {[%clk 0:00:21]} 33. Re3 {[%clk 0:00:43]}  h6 {[%clk 0:00:21]} 34. h3 {[%clk 0:00:40]}  Rd8 {[%clk 0:00:21]} 35. Qe5 {[%clk 0:00:38]}  Rd2+ {[%clk 0:00:21]} 36. Ke1 {[%clk 0:00:38]}  Qxe5 {[%clk 0:00:13]} 37. Rxe5 {[%clk 0:00:37]}  Rxg2 {[%clk 0:00:14]} 38. Rf1 {[%clk 0:00:34]}  Rg3 {[%clk 0:00:13]} 39. Kd2 {[%clk 0:00:31]}  Rd3+ {[%clk 0:00:12]} 40. Ke2 {[%clk 0:00:30]}  Rxc3 {[%clk 0:00:13]} 41. Re3 {[%clk 0:00:28]}  Rc2+ {[%clk 0:00:12]} 42. Kf3 {[%clk 0:00:28]}  Rc4 {[%clk 0:00:12]} 43. Kg3 {[%clk 0:00:27]}  h5 {[%clk 0:00:12]} 44. Rf4 {[%clk 0:00:27]}  Rc1 {[%clk 0:00:11]} 45. h4 {[%clk 0:00:27]}  Kh7 {[%clk 0:00:12]} 46. Rb4 {[%clk 0:00:27]}  Rg1+ {[%clk 0:00:11]} 47. Kh2 {[%clk 0:00:26]}  Rd1 {[%clk 0:00:10]} 48. Kg3 {[%clk 0:00:26]}  Rd7 {[%clk 0:00:08]} 49. Rf3 {[%clk 0:00:26]}  f6 {[%clk 0:00:07]} 50. Re3 {[%clk 0:00:27]}  Bf5 {[%clk 0:00:07]} 51. Rb6 {[%clk 0:00:26]}  Kg6 {[%clk 0:00:07]} 52. Rf3 {[%clk 0:00:26]}  Bg4 {[%clk 0:00:07]} 53. Re3 {[%clk 0:00:25]}  Rd1 {[%clk 0:00:07]} 54. Rb7 {[%clk 0:00:25]}  Kf5 {[%clk 0:00:03]} 55. Rxg7 {[%clk 0:00:22]}  Rh1 {[%clk 0:00:03]} 56. Ra7 {[%clk 0:00:19]}  Rh3+ {[%clk 0:00:03]} 57. Kf2 {[%clk 0:00:19]}  Rh2+ {[%clk 0:00:04]} 58. Kg3 {[%clk 0:00:18]}  Rh3+ {[%clk 0:00:04]} 59. Kf2 {[%clk 0:00:19]}  Rxh4 {[%clk 0:00:05]} 60. Ra5+ {[%clk 0:00:18]}  Kf4 {[%clk 0:00:05]} 61. Ra4+ {[%clk 0:00:18]}  Kf5 {[%clk 0:00:05]} 62. Rc3 {[%clk 0:00:17]}  Rh2+ {[%clk 0:00:05]} 63. Kg1 {[%clk 0:00:16]}  Rd2 {[%clk 0:00:05]} 64. Rc5+ {[%clk 0:00:17]}  Kg6 {[%clk 0:00:05]} 65. Raa5 {[%clk 0:00:15]}  f5 {[%clk 0:00:05]} 66. Ra8 {[%clk 0:00:15]}  Kg5 {[%clk 0:00:06]} 67. Rg8+ {[%clk 0:00:13]}  Kf4 {[%clk 0:00:06]} 68. Rc3 {[%clk 0:00:13]}  h4 {[%clk 0:00:06]} 69. Rb8 {[%clk 0:00:12]}  h3 {[%clk 0:00:05]} 70. Rb4+ {[%clk 0:00:13]}  Kg5 {[%clk 0:00:05]} 71. Rc5 {[%clk 0:00:12]}  Kh4 {[%clk 0:00:05]} 72. Rc3 {[%clk 0:00:11]}  Rd1+ {[%clk 0:00:04]} 73. Kh2 {[%clk 0:00:11]}  Rd2+ {[%clk 0:00:05]} 74. Kg1 {[%clk 0:00:12]}  Rg2+ {[%clk 0:00:05]} 75. Kf1 {[%clk 0:00:12]}  Rg3 {[%clk 0:00:04]} 76. Rxg3 {[%clk 0:00:11]}  Kxg3 {[%clk 0:00:05]} 77. Kg1 {[%clk 0:00:11]}  h2+ {[%clk 0:00:03]} 78. Kh1 {[%clk 0:00:10]}  Bf3# {[%clk 0:00:04]} 0-1


[Site "https://www.chess.com"]